Workbook

Sheet 平成１９年度
B1: 産婦人科の概要（平成１９年度）
A2: 1.産婦人科外来件数・地区別
A4: 月別 | B4: 産科 | E4: 婦人科 | H4: 計 | L4: 尾鷲市 | Q4: 紀北町 | V4: 県内 | Y4: 県外
A5: 4 | B5: 152 | E5: 76 | H5: 228 | M5: 151 | R5: 60 | V5: 9 | Y5: 8
A6: 5 | B6: 179 | E6: 109 | H6: 288 | M6: 185 | R6: 78 | V6: 8 | Y6: 17
A7: 6 | B7: 149 | E7: 100 | H7: 249 | M7: 160 | R7: 72 | V7: 5 | Y7: 12
A8: 7 | B8: 136 | E8: 83 | H8: 219 | M8: 145 | R8: 56 | V8: 7 | Y8: 11
A9: 8 | B9: 140 | E9: 127 | H9: 267 | M9: 178 | R9: 66 | V9: 9 | Y9: 14
A10: 9 | B10: 152 | E10: 91 | H10: 243 | M10: 170 | R10: 60 | V10: 8 | Y10: 5
A11: 10 | B11: 157 | E11: 98 | H11: 255 | M11: 167 | R11: 65 | V11: 17 | Y11: 6
A12: 11 | B12: 154 | E12: 100 | H12: 254 | M12: 160 | R12: 65 | V12: 16 | Y12: 13
A13: 12 | B13: 165 | E13: 90 | H13: 255 | M13: 149 | R13: 77 | V13: 7 | Y13: 22
A14: 1 | B14: 130 | E14: 82 | H14: 212 | M14: 116 | R14: 62 | V14: 9 | Y14: 25
A15: 2 | B15: 163 | E15: 68 | H15: 231 | M15: 133 | R15: 76 | V15: 4 | Y15: 18
A16: 3 | B16: 145 | E16: 67 | H16: 212 | M16: 132 | R16: 62 | V16: 3 | Y16: 15
A17: 計 | B17: =SUM(B5:B16) -> 1822 | E17: =SUM(E5:E16) -> 1091 | H17: =SUM(H5:H16) -> 2913 | M17: =SUM(M5:M16) -> 1846 | R17: =SUM(R5:R16) -> 799 | V17: =SUM(V5:V16) -> 102 | Y17: =SUM(Y5:Y16) -> 166
A19: 2.出産件数・地区別
A21: 月別 | B21: 尾鷲市 | G21: 紀北町 | M21: 県内 | W21: 計
A22: 4 | B22: 12 | D22: （ | E22: 5 | F22: ） | G22: 3 | I22: （ | J22: 1 | K22: ） | O22: （ | Q22: ） | W22: =B22+G22+M22+R22 -> 15 | Y22: （ | Z22: =E22+J22+P22+U22 -> 6 | AA22: ）
A23: 5 | B23: 12 | D23: （ | E23: 3 | F23: ） | G23: 7 | I23: （ | J23: 3 | K23: ） | M23: 1 | O23: （ | P23: 1 | Q23: ） | W23: =B23+G23+M23+R23 -> 20 | Y23: （ | Z23: =E23+J23+P23+U23 -> 7 | AA23: ）
A24: 6 | B24: 12 | D24: （ | E24: 3 | F24: ） | G24: 3 | I24: （ | J24: 1 | K24: ） | O24: （ | Q24: ） | W24: 15 | Y24: （ | Z24: 4 | AA24: ）
A25: 7 | B25: 8 | D25: （ | E25: 5 | F25: ） | G25: 5 | I25: （ | J25: 2 | K25: ） | M25: 1 | O25: （ | Q25: ） | W25: 14 | Y25: （ | Z25: 7 | AA25: ）
A26: 8 | B26: 7 | D26: （ | E26: 2 | F26: ） | G26: 2 | I26: （ | J26: 1 | K26: ） | O26: （ | Q26: ） | W26: 9 | Y26: （ | Z26: 3 | AA26: ）
A27: 9 | B27: 10 | D27: （ | E27: 2 | F27: ） | G27: 1 | I27: （ | K27: ） | O27: （ | Q27: ） | W27: 11 | Y27: （ | Z27: 2 | AA27: ）
A28: 10 | B28: 7 | D28: （ | E28: 2 | F28: ） | I28: （ | K28: ） | O28: （ | Q28: ） | W28: 7 | Y28: （ | Z28: 2 | AA28: ）
A29: 11 | B29: 13 | D29: （ | E29: 5 | F29: ） | G29: 5 | I29: （ | J29: 2 | K29: ） | O29: （ | Q29: ） | W29: 18 | Y29: （ | Z29: 7 | AA29: ）
A30: 12 | B30: 12 | D30: （ | E30: 3 | F30: ） | G30: 4 | I30: （ | J30: 2 | K30: ） | O30: （ | Q30: ） | W30: 16 | Y30: （ | Z30: 5 | AA30: ）
A31: 1 | B31: 10 | D31: （ | E31: 6 | F31: ） | G31: 5 | I31: （ | J31: 1 | K31: ） | O31: （ | Q31: ） | W31: 15 | Y31: （ | Z31: 7 | AA31: ）
A32: 2 | B32: 6 | D32: （ | E32: 4 | F32: ） | G32: 3 | I32: （ | J32: 1 | K32: ） | O32: （ | Q32: ） | W32: 9 | Y32: （ | Z32: 5 | AA32: ）
A33: 3 | B33: 12 | D33: （ | E33: 3 | F33: ） | G33: 5 | I33: （ | J33: 1 | K33: ） | O33: （ | Q33: ） | W33: 17 | Y33: （ | Z33: 4 | AA33: ）
A34: 計 | B34: =SUM(B22:B33) -> 121 | D34: （ | E34: =SUM(E22:E33) -> 43 | F34: ） | G34: =SUM(G22:G33) -> 43 | I34: （ | J34: =SUM(J22:J33) -> 15 | K34: ） | M34: =SUM(M22:M33) -> 2 | O34: （ | P34: =SUM(P22:P33) -> 1 | Q34: ） | W34: 166 | Y34: （ | Z34: 59 | AA34: ）
A35: （）は里帰り分で内数

Sheet ２０年度
B1: 産婦人科の概要（平成２０年度）
A2: 1.産婦人科外来件数・地区別
A4: 月別 | B4: 産科 | E4: 婦人科 | H4: 計 | L4: 尾鷲市 | Q4: 紀北町 | V4: 県内 | Y4: 県外
A5: 4 | B5: 136 | E5: 72 | H5: 208 | M5: 142 | R5: 46 | V5: 11 | Y5: 9
A6: 5 | B6: 119 | E6: 84 | H6: 203 | M6: 133 | R6: 56 | V6: 3 | Y6: 11
A7: 6 | B7: 96 | E7: 126 | H7: 222 | M7: 155 | R7: 40 | V7: 5 | Y7: 22
A8: 7 | B8: 109 | E8: 91 | H8: 200 | M8: 121 | R8: 46 | V8: 7 | Y8: 26
A9: 8 | B9: 118 | E9: 94 | H9: 212 | M9: 140 | R9: 40 | V9: 8 | Y9: 24
A10: 9 | B10: 102 | E10: 95 | H10: 197 | M10: 133 | R10: 51 | V10: 9 | Y10: 4
A11: 10 | B11: 136 | E11: 86 | H11: 222 | M11: 130 | R11: 64 | V11: 24 | Y11: 4
A12: 11 | B12: 107 | E12: 93 | H12: 200 | M12: 125 | R12: 42 | V12: 27 | Y12: 6
A13: 12 | B13: 161 | E13: 88 | H13: 249 | M13: 158 | R13: 67 | V13: 16 | Y13: 8
A14: 1 | B14: 143 | E14: 98 | H14: 241 | M14: 152 | R14: 51 | V14: 24 | Y14: 14
A15: 2 | B15: 153 | E15: 69 | H15: 222 | M15: 135 | R15: 40 | V15: 29 | Y15: 18
A16: 3 | B16: 149 | E16: 104 | H16: 253 | M16: 170 | R16: 35 | V16: 25 | Y16: 23
A17: 計 | B17: =SUM(B5:B16) -> 1529 | E17: =SUM(E5:E16) -> 1100 | H17: =SUM(H5:H16) -> 2629 | M17: =SUM(M5:M16) -> 1694 | R17: =SUM(R5:R16) -> 578 | V17: =SUM(V5:V16) -> 188 | Y17: =SUM(Y5:Y16) -> 169
A19: 2.出産件数・地区別
A21: 月別 | B21: 尾鷲市 | G21: 紀北町 | M21: 県内 | W21: 計
A22: 4 | B22: 7 | D22: （ | E22: 1 | F22: ） | G22: 4 | I22: （ | K22: ） | M22: 1 | O22: （ | Q22: ） | W22: =B22+G22+M22+R22 -> 12 | Y22: （ | Z22: =E22+J22+P22+U22 -> 1 | AA22: ）
A23: 5 | B23: 9 | D23: （ | E23: 2 | F23: ） | G23: 2 | I23: （ | J23: 1 | K23: ） | O23: （ | Q23: ） | W23: =B23+G23+M23+R23 -> 11 | Y23: （ | Z23: =E23+J23+P23+U23 -> 3 | AA23: ）
A24: 6 | B24: 7 | D24: （ | E24: 2 | F24: ） | G24: 6 | I24: （ | J24: 2 | K24: ） | O24: （ | Q24: ） | W24: 13 | Y24: （ | Z24: 4 | AA24: ）
A25: 7 | B25: 11 | D25: （ | E25: 4 | F25: ） | G25: 6 | I25: （ | J25: 1 | K25: ） | O25: （ | Q25: ） | W25: 17 | Y25: （ | Z25: 5 | AA25: ）
A26: 8 | B26: 10 | D26: （ | E26: 5 | F26: ） | G26: 1 | I26: （ | J26: 1 | K26: ） | O26: （ | Q26: ） | W26: 11 | Y26: （ | Z26: 6 | AA26: ）
A27: 9 | B27: 8 | D27: （ | E27: 2 | F27: ） | G27: 2 | I27: （ | J27: 1 | K27: ） | O27: （ | Q27: ） | W27: 10 | Y27: （ | Z27: 3 | AA27: ）
A28: 10 | B28: 5 | D28: （ | E28: 1 | F28: ） | G28: 6 | I28: （ | J28: 1 | K28: ） | O28: （ | Q28: ） | W28: 11 | Y28: （ | Z28: 2 | AA28: ）
A29: 11 | B29: 8 | D29: （ | E29: 2 | F29: ） | G29: 1 | I29: （ | K29: ） | O29: （ | Q29: ） | W29: 9 | Y29: （ | Z29: 2 | AA29: ）
A30: 12 | B30: 11 | D30: （ | E30: 2 | F30: ） | G30: 6 | I30: （ | J30: 1 | K30: ） | M30: 1 | O30: （ | Q30: ） | W30: 18 | Y30: （ | Z30: 3 | AA30: ）
A31: 1 | B31: 8 | D31: （ | E31: 2 | F31: ） | G31: 5 | I31: （ | J31: 1 | K31: ） | O31: （ | Q31: ） | W31: 13 | Y31: （ | Z31: 3 | AA31: ）
A32: 2 | B32: 9 | D32: （ | E32: 3 | F32: ） | G32: 4 | I32: （ | J32: 2 | K32: ） | O32: （ | Q32: ） | W32: 13 | Y32: （ | Z32: 5 | AA32: ）
A33: 3 | B33: 12 | D33: （ | F33: ） | G33: 3 | I33: （ | J33: 2 | K33: ） | O33: （ | Q33: ） | W33: 15 | Y33: （ | Z33: 2 | AA33: ）
A34: 計 | B34: =SUM(B22:B33) -> 105 | D34: （ | E34: =SUM(E22:E33) -> 26 | F34: ） | G34: =SUM(G22:G33) -> 46 | I34: （ | J34: =SUM(J22:J33) -> 13 | K34: ） | M34: =SUM(M22:M33) -> 2 | O34: （ | Q34: ） | W34: 153 | Y34: （ | Z34: 39 | AA34: ）
A35: （）は里帰り分で内数

Sheet ２１年度
B1: 産婦人科の概要（平成２１年度）
A2: 1.産婦人科外来件数・地区別
A4: 月別 | B4: 産科 | E4: 婦人科 | H4: 計 | L4: 尾鷲市 | Q4: 紀北町 | V4: 県内 | Y4: 県外
A5: 4 | B5: 152 | E5: 112 | H5: 264 | M5: 166 | R5: 47 | V5: 29 | Y5: 22
A6: 5 | B6: 149 | E6: 102 | H6: 251 | M6: 162 | R6: 54 | V6: 27 | Y6: 8
A7: 6 | B7: 116 | E7: 109 | H7: 225 | M7: 165 | R7: 39 | V7: 18 | Y7: 3
A8: 7 | B8: 165 | E8: 71 | H8: 236 | M8: 167 | R8: 43 | V8: 16 | Y8: 10
A9: 8 | B9: 150 | E9: 109 | H9: 259 | M9: 175 | R9: 43 | V9: 24 | Y9: 17
A10: 9 | B10: 130 | E10: 98 | H10: 228 | M10: 172 | R10: 27 | V10: 16 | Y10: 13
A11: 10 | B11: 128 | E11: 105 | H11: 233 | M11: 167 | R11: 39 | V11: 13 | Y11: 14
A12: 11 | B12: 113 | E12: 93 | H12: 206 | M12: 130 | R12: 51 | V12: 11 | Y12: 14
A13: 12 | B13: 137 | E13: 72 | H13: 209 | M13: 149 | R13: 31 | V13: 10 | Y13: 19
A14: 1 | B14: 135 | E14: 66 | H14: 201 | M14: 131 | R14: 42 | V14: 9 | Y14: 19
A15: 2 | B15: 105 | E15: 66 | H15: 171 | M15: 107 | R15: 38 | V15: 9 | Y15: 17
A16: 3 | B16: 132 | E16: 80 | H16: 212 | M16: 123 | R16: 55 | V16: 14 | Y16: 20
A17: 計 | B17: =SUM(B5:B16) -> 1612 | E17: =SUM(E5:E16) -> 1083 | H17: =SUM(H5:H16) -> 2695 | M17: =SUM(M5:M16) -> 1814 | R17: =SUM(R5:R16) -> 509 | V17: =SUM(V5:V16) -> 196 | Y17: =SUM(Y5:Y16) -> 176
A19: 2.出産件数・地区別
A21: 月別 | B21: 尾鷲市 | G21: 紀北町 | M21: 県内 | W21: 計
A22: 4 | B22: 13 | D22: （ | E22: 6 | F22: ） | G22: 5 | I22: （ | J22: 1 | K22: ） | O22: （ | Q22: ） | W22: =B22+G22+M22+R22 -> 18 | Y22: （ | Z22: =E22+J22+P22+U22 -> 7 | AA22: ）
A23: 5 | B23: 5 | D23: （ | E23: 2 | F23: ） | G23: 3 | I23: （ | J23: 0 | K23: ） | O23: （ | Q23: ） | W23: =B23+G23+M23+R23 -> 8 | Y23: （ | Z23: =E23+J23+P23+U23 -> 2 | AA23: ）
A24: 6 | B24: 7 | D24: （ | E24: 4 | F24: ） | G24: 2 | I24: （ | J24: 0 | K24: ） | O24: （ | Q24: ） | W24: 9 | Y24: （ | Z24: 4 | AA24: ）
A25: 7 | B25: 10 | D25: （ | E25: 1 | F25: ） | G25: 0 | I25: （ | K25: ） | O25: （ | Q25: ） | W25: 10 | Y25: （ | Z25: 1 | AA25: ）
A26: 8 | B26: 10 | D26: （ | E26: 1 | F26: ） | G26: 7 | I26: （ | J26: 2 | K26: ） | O26: （ | Q26: ） | W26: 17 | Y26: （ | Z26: 3 | AA26: ）
A27: 9 | B27: 11 | D27: （ | E27: 3 | F27: ） | G27: 1 | I27: （ | J27: 0 | K27: ） | O27: （ | Q27: ） | W27: 12 | Y27: （ | Z27: 3 | AA27: ）
A28: 10 | B28: 9 | D28: （ | E28: 3 | F28: ） | G28: 0 | I28: （ | K28: ） | O28: （ | Q28: ） | W28: 9 | Y28: （ | Z28: 3 | AA28: ）
A29: 11 | B29: 4 | D29: （ | E29: 2 | F29: ） | G29: 3 | I29: （ | J29: 2 | K29: ） | O29: （ | Q29: ） | W29: 7 | Y29: （ | Z29: 4 | AA29: ）
A30: 12 | B30: 6 | D30: （ | E30: 0 | F30: ） | G30: 3 | I30: （ | J30: 1 | K30: ） | O30: （ | Q30: ） | W30: 9 | Y30: （ | Z30: 1 | AA30: ）
A31: 1 | B31: 10 | D31: （ | E31: 4 | F31: ） | G31: 4 | I31: （ | J31: 0 | K31: ） | O31: （ | Q31: ） | W31: 14 | Y31: （ | Z31: 4 | AA31: ）
A32: 2 | B32: 7 | D32: （ | E32: 1 | F32: ） | G32: 1 | I32: （ | J32: 0 | K32: ） | O32: （ | Q32: ） | W32: 8 | Y32: （ | Z32: 1 | AA32: ）
A33: 3 | B33: 5 | D33: （ | E33: 1 | F33: ） | G33: 3 | I33: （ | J33: 0 | K33: ） | O33: （ | Q33: ） | W33: 8 | Y33: （ | Z33: 1 | AA33: ）
A34: 計 | B34: =SUM(B22:B33) -> 97 | D34: （ | E34: =SUM(E22:E33) -> 28 | F34: ） | G34: =SUM(G22:G33) -> 32 | I34: （ | J34: =SUM(J22:J33) -> 6 | K34: ） | M34: =SUM(M22:M33) -> 0 | O34: （ | Q34: ） | W34: 129 | Y34: （ | Z34: 34 | AA34: ）
A35: （）は里帰り分で内数

Sheet 22年度
B1: 産婦人科の概要（平成２２年度）
A2: 1.産婦人科外来件数・地区別
A4: 月別 | B4: 産科 | E4: 婦人科 | H4: 計 | L4: 尾鷲市 | Q4: 紀北町 | V4: 県内 | Y4: 県外
A5: 4 | B5: 150 | E5: 81 | H5: 231 | M5: 139 | R5: 50 | V5: 20 | Y5: 22
A6: 5 | B6: 151 | E6: 81 | H6: 232 | M6: 123 | R6: 51 | V6: 23 | Y6: 35
A7: 6 | B7: 135 | E7: 104 | H7: 239 | M7: 155 | R7: 51 | V7: 12 | Y7: 21
A8: 7 | B8: 148 | E8: 114 | H8: 262 | M8: 155 | R8: 56 | V8: 24 | Y8: 27
A9: 8 | B9: 192 | E9: 92 | H9: 284 | M9: 167 | R9: 50 | V9: 22 | Y9: 45
A10: 9 | B10: 180 | E10: 107 | H10: 287 | M10: 181 | R10: 57 | V10: 21 | Y10: 28
A11: 10 | B11: 165 | E11: 101 | H11: 266 | M11: 175 | R11: 56 | V11: 10 | Y11: 25
A12: 11 | B12: 159 | E12: 93 | H12: 252 | M12: 169 | R12: 41 | V12: 16 | Y12: 26
A13: 12 | B13: 162 | E13: 81 | H13: 243 | M13: 154 | R13: 54 | V13: 16 | Y13: 19
A14: 1 | B14: 153 | E14: 85 | H14: 238 | M14: 151 | R14: 59 | V14: 17 | Y14: 11
A15: 2 | B15: 139 | E15: 95 | H15: 234 | M15: 134 | R15: 70 | V15: 23 | Y15: 7
A16: 3 | B16: 184 | E16: 115 | H16: 299 | M16: 167 | R16: 76 | V16: 32 | Y16: 24
A17: 計 | B17: =SUM(B5:B16) -> 1918 | E17: =SUM(E5:E16) -> 1149 | H17: =SUM(H5:H16) -> 3067 | M17: =SUM(M5:M16) -> 1870 | R17: =SUM(R5:R16) -> 671 | V17: =SUM(V5:V16) -> 236 | Y17: =SUM(Y5:Y16) -> 290
A19: 2.出産件数・地区別
A21: 月別 | B21: 尾鷲市 | G21: 紀北町 | M21: 県内 | W21: 計
A22: 4 | B22: 9 | D22: （ | E22: 4 | F22: ） | G22: 3 | I22: （ | J22: 1 | K22: ） | O22: （ | Q22: ） | W22: =B22+G22+M22+R22 -> 12 | Y22: （ | Z22: =E22+J22+P22+U22 -> 5 | AA22: ）
A23: 5 | B23: 15 | D23: （ | E23: 4 | F23: ） | G23: 2 | I23: （ | J23: 0 | K23: ） | O23: （ | Q23: ） | W23: =B23+G23+M23+R23 -> 17 | Y23: （ | Z23: =E23+J23+P23+U23 -> 4 | AA23: ）
A24: 6 | B24: 12 | D24: （ | E24: 4 | F24: ） | G24: 6 | I24: （ | J24: 2 | K24: ） | O24: （ | Q24: ） | W24: 18 | Y24: （ | Z24: 6 | AA24: ）
A25: 7 | B25: 4 | D25: （ | E25: 0 | F25: ） | I25: （ | K25: ） | O25: （ | Q25: ） | W25: 4 | Y25: （ | Z25: 0 | AA25: ）
A26: 8 | B26: 12 | D26: （ | E26: 5 | F26: ） | G26: 1 | I26: （ | J26: 0 | K26: ） | M26: 1 | O26: （ | P26: 0 | Q26: ） | W26: 14 | Y26: （ | Z26: 5 | AA26: ）
A27: 9 | B27: 12 | D27: （ | E27: 5 | F27: ） | G27: 4 | I27: （ | J27: 3 | K27: ） | O27: （ | Q27: ） | W27: 16 | Y27: （ | Z27: 8 | AA27: ）
A28: 10 | B28: 10 | D28: （ | E28: 1 | F28: ） | G28: 4 | I28: （ | J28: 2 | K28: ） | O28: （ | Q28: ） | W28: 14 | Y28: （ | Z28: 3 | AA28: ）
A29: 11 | B29: 7 | D29: （ | E29: 2 | F29: ） | G29: 5 | I29: （ | J29: 3 | K29: ） | O29: （ | Q29: ） | W29: 12 | Y29: （ | Z29: 5 | AA29: ）
A30: 12 | B30: 12 | D30: （ | E30: 5 | F30: ） | G30: 1 | I30: （ | J30: 1 | K30: ） | O30: （ | Q30: ） | W30: 13 | Y30: （ | Z30: 6 | AA30: ）
A31: 1 | B31: 6 | D31: （ | E31: 0 | F31: ） | G31: 7 | I31: （ | J31: 0 | K31: ） | O31: （ | Q31: ） | W31: 13 | Y31: （ | Z31: 0 | AA31: ）
A32: 2 | B32: 8 | D32: （ | E32: 3 | F32: ） | G32: 2 | I32: （ | J32: 0 | K32: ） | O32: （ | Q32: ） | W32: 10 | Y32: （ | Z32: 3 | AA32: ）
A33: 3 | B33: 9 | D33: （ | E33: 3 | F33: ） | G33: 5 | I33: （ | J33: 2 | K33: ） | O33: （ | Q33: ） | W33: 14 | Y33: （ | Z33: 5 | AA33: ）
A34: 計 | B34: =SUM(B22:B33) -> 116 | D34: （ | E34: =SUM(E22:E33) -> 36 | F34: ） | G34: =SUM(G22:G33) -> 40 | I34: （ | J34: =SUM(J22:J33) -> 14 | K34: ） | M34: =SUM(M22:M33) -> 1 | O34: （ | Q34: ） | W34: 157 | Y34: （ | Z34: 50 | AA34: ）
A35: １０、３月死産で２件あり（）は里帰り分で内数

Sheet 23年度
B1: 産婦人科の概要（平成２３年度）
A2: 1.産婦人科外来件数・地区別
A4: 月別 | B4: 産科 | E4: 婦人科 | H4: 計 | L4: 尾鷲市 | Q4: 紀北町 | V4: 県内 | Y4: 県外
A5: 4 | B5: 131 | E5: 114 | H5: 245 | M5: 137 | R5: 65 | V5: 18 | Y5: 25
A6: 5 | B6: 152 | E6: 94 | H6: 246 | M6: 138 | R6: 54 | V6: 22 | Y6: 32
A7: 6 | B7: 182 | E7: 103 | H7: 285 | M7: 156 | R7: 67 | V7: 37 | Y7: 25
A8: 7 | B8: 148 | E8: 116 | H8: 264 | M8: 162 | R8: 60 | V8: 21 | Y8: 21
A9: 8 | B9: 158 | E9: 111 | H9: 269 | M9: 155 | R9: 63 | V9: 17 | Y9: 34
A10: 9 | B10: 109 | E10: 105 | H10: 214 | M10: 127 | R10: 38 | V10: 17 | Y10: 32
A11: 10 | B11: 125 | E11: 114 | H11: 239 | M11: 152 | R11: 55 | V11: 6 | Y11: 26
A12: 11 | B12: 124 | E12: 103 | H12: 227 | M12: 151 | R12: 30 | V12: 17 | Y12: 29
A13: 12 | B13: 124 | E13: 102 | H13: 231 | M13: 155 | R13: 41 | V13: 16 | Y13: 19
A14: 1 | B14: 92 | E14: 96 | H14: 188 | M14: 127 | R14: 34 | V14: 18 | Y14: 9
A15: 2 | B15: 109 | E15: 115 | H15: 224 | M15: 153 | R15: 53 | V15: 11 | Y15: 7
A16: 3 | B16: 79 | E16: 109 | H16: 188 | M16: 112 | R16: 54 | V16: 17 | Y16: 5
A17: 計 | B17: =SUM(B5:B16) -> 1533 | E17: =SUM(E5:E16) -> 1282 | H17: =SUM(H5:H16) -> 2820 | M17: =SUM(M5:M16) -> 1725 | R17: =SUM(R5:R16) -> 614 | V17: =SUM(V5:V16) -> 217 | Y17: =SUM(Y5:Y16) -> 264
A19: 2.出産件数・地区別
A21: 月別 | B21: 尾鷲市 | G21: 紀北町 | M21: 県内 | W21: 計
A22: 4 | B22: 12 | D22: ( | E22: 4 | F22: ) | G22: 8 | I22: ( | J22: 2 | K22: ) | O22: ( | Q22: ） | W22: =B22+G22+M22+R22 -> 20 | Y22: （ | Z22: =E22+J22+P22+U22 -> 6 | AA22: ）
A23: 5 | B23: 7 | D23: ( | E23: 3 | F23: ) | G23: 2 | I23: ( | J23: 1 | K23: ) | O23: ( | Q23: ） | W23: =B23+G23+M23+R23 -> 9 | Y23: （ | Z23: =E23+J23+P23+U23 -> 4 | AA23: ）
A24: 6 | B24: 11 | D24: ( | E24: 5 | F24: ) | G24: 3 | I24: ( | J24: 0 | K24: ) | M24: 2 | O24: ( | P24: 1 | Q24: ） | W24: 16 | Y24: （ | Z24: 6 | AA24: ）
A25: 7 | B25: 7 | D25: ( | E25: 1 | F25: ) | G25: 5 | I25: ( | J25: 0 | K25: ) | O25: ( | Q25: ） | W25: 12 | Y25: （ | Z25: 1 | AA25: ）
A26: 8 | B26: 10 | D26: ( | E26: 3 | F26: ) | G26: 4 | I26: ( | J26: 0 | K26: ) | O26: ( | Q26: ） | W26: 14 | Y26: （ | Z26: 3 | AA26: ）
A27: 9 | B27: 12 | D27: ( | E27: 3 | F27: ) | G27: 5 | I27: ( | J27: 2 | K27: ) | O27: ( | Q27: ） | W27: 17 | Y27: （ | Z27: 5 | AA27: ）
A28: 10 | B28: 12 | D28: ( | E28: 2 | F28: ) | G28: 2 | I28: ( | J28: 2 | K28: ) | O28: ( | Q28: ） | W28: 14 | Y28: （ | Z28: 4 | AA28: ）
A29: 11 | B29: 6 | D29: ( | E29: 1 | F29: ) | G29: 7 | I29: ( | J29: 5 | K29: ) | O29: ( | Q29: ） | W29: 13 | Y29: （ | Z29: 6 | AA29: ）
A30: 12 | B30: 7 | D30: ( | E30: 2 | F30: ) | G30: 2 | I30: ( | J30: 1 | K30: ) | O30: ( | Q30: ） | W30: 9 | Y30: （ | Z30: 3 | AA30: ）
A31: 1 | B31: 9 | D31: ( | E31: 3 | F31: ) | G31: 3 | I31: ( | J31: 1 | K31: ) | O31: ( | Q31: ） | W31: 12 | Y31: （ | Z31: 4 | AA31: ）
A32: 2 | B32: 5 | D32: ( | E32: 0 | F32: ) | G32: 2 | I32: ( | J32: 0 | K32: ) | O32: ( | Q32: ） | W32: 7 | Y32: （ | Z32: 0 | AA32: ）
A33: 3 | B33: 10 | D33: ( | E33: 2 | F33: ) | G33: 3 | I33: ( | J33: 0 | K33: ) | O33: ( | Q33: ） | W33: 13 | Y33: （ | Z33: 2 | AA33: ）
A34: 計 | B34: =SUM(B22:B33) -> 108 | D34: （ | E34: =SUM(E22:E33) -> 29 | F34: ） | G34: =SUM(G22:G33) -> 46 | I34: （ | J34: =SUM(J22:J33) -> 14 | K34: ） | M34: =SUM(M22:M33) -> 2 | O34: （ | Q34: ） | W34: 156 | Y34: （ | Z34: 43 | AA34: ）
A35: 月死産で0件あり（）は里帰り分で内数

Sheet 24年度
B1: 産婦人科の概要（平成２４年度）
A2: 1.産婦人科外来件数・地区別
A4: 月別 | B4: 産科 | E4: 婦人科 | H4: 計 | L4: 尾鷲市 | Q4: 紀北町 | V4: 県内 | Y4: 県外
A5: 4 | B5: 64 | E5: 82 | H5: 146 | M5: 95 | R5: 24 | V5: 11 | Y5: 16
A6: 5 | B6: 65 | E6: 95 | H6: 160 | M6: 95 | R6: 39 | V6: 11 | Y6: 15
A7: 6 | B7: 81 | E7: 89 | H7: 170 | M7: 108 | R7: 36 | V7: 13 | Y7: 13
A8: 7 | B8: 93 | E8: 84 | H8: 177 | M8: 108 | R8: 31 | V8: 15 | Y8: 23
A9: 8 | B9: 118 | E9: 125 | H9: 243 | M9: 135 | R9: 46 | V9: 28 | Y9: 34
A10: 9 | B10: 93 | E10: 89 | H10: 182 | M10: 111 | R10: 44 | V10: 17 | Y10: 10
A11: 10 | B11: 156 | E11: 98 | H11: 254 | M11: 185 | R11: 47 | V11: 15 | Y11: 7
A12: 11 | B12: 144 | E12: 108 | H12: 252 | M12: 164 | R12: 60 | V12: 18 | Y12: 10
A13: 12 | B13: 140 | E13: 118 | H13: 258 | M13: 151 | R13: 61 | V13: 24 | Y13: 22
A14: 1 | B14: 145 | E14: 89 | H14: 234 | M14: 144 | R14: 53 | V14: 15 | Y14: 22
A15: 2 | H15: 194 | M15: 125 | R15: 51 | V15: 8 | Y15: 10
A16: 3 | H16: 215 | M16: 143 | R16: 45 | V16: 12 | Y16: 15
A17: 計 | B17: =SUM(B5:B16) -> 1099 | E17: =SUM(E5:E16) -> 977 | H17: =SUM(H5:H16) -> 2485 | M17: =SUM(M5:M16) -> 1564 | R17: =SUM(R5:R16) -> 537 | V17: =SUM(V5:V16) -> 187 | Y17: =SUM(Y5:Y16) -> 197
A19: 2.出産件数・地区別
A21: 月別 | B21: 尾鷲市 | G21: 紀北町 | M21: 県内 | W21: 計
A22: 4 | B22: 5 | D22: ( | E22: 2 | F22: ) | G22: 3 | I22: ( | J22: 0 | K22: ) | M22: 1 | O22: ( | P22: 1 | Q22: ） | W22: =B22+G22+M22+R22 -> 9 | Y22: （ | Z22: =E22+J22+P22+U22 -> 3 | AA22: ）
A23: 5 | B23: 1 | D23: ( | E23: 1 | F23: ） | G23: 1 | I23: ( | J23: 0 | K23: ) | O23: ( | Q23: ） | W23: =B23+G23+M23+R23 -> 2 | Y23: （ | Z23: =E23+J23+P23+U23 -> 1 | AA23: ）
A24: 6 | B24: 1 | D24: ( | F24: ) | G24: 1 | I24: ( | J24: 1 | K24: ) | O24: ( | Q24: ） | W24: 2 | Y24: （ | Z24: 1 | AA24: ）
A25: 7 | B25: 8 | D25: ( | E25: 2 | F25: ) | G25: 1 | I25: ( | J25: 0 | K25: ) | O25: ( | Q25: ） | W25: 9 | Y25: （ | Z25: 2 | AA25: ）
A26: 8 | B26: 8 | D26: ( | E26: 5 | F26: ) | G26: 4 | I26: ( | J26: 3 | K26: ) | O26: ( | Q26: ） | W26: 12 | Y26: （ | Z26: 8 | AA26: ）
A27: 9 | B27: 2 | D27: ( | E27: 1 | F27: ) | G27: 2 | I27: ( | J27: 0 | K27: ) | O27: ( | Q27: ） | W27: 4 | Y27: （ | Z27: 1 | AA27: ）
A28: 10 | B28: 7 | D28: ( | E28: 1 | F28: ) | G28: 4 | I28: ( | J28: 1 | K28: ) | O28: ( | Q28: ） | W28: 11 | Y28: （ | Z28: 2 | AA28: ）
A29: 11 | B29: 10 | D29: ( | E29: 2 | F29: ) | G29: 2 | I29: ( | K29: ) | M29: 1 | O29: ( | Q29: ） | W29: 13 | Y29: （ | Z29: 2 | AA29: ）
A30: 12 | B30: 9 | D30: ( | E30: 1 | F30: ) | G30: 2 | I30: ( | K30: ) | O30: ( | Q30: ） | W30: 11 | Y30: （ | Z30: 1 | AA30: ）
A31: 1 | B31: 11 | D31: ( | E31: 3 | F31: ) | G31: 6 | I31: ( | J31: 3 | K31: ) | M31: 1 | O31: ( | Q31: ） | W31: 18 | Y31: （ | Z31: 6 | AA31: ）
A32: 2 | B32: 5 | D32: ( | E32: 1 | F32: ) | G32: 4 | I32: ( | K32: ) | O32: ( | Q32: ） | W32: 9 | Y32: （ | Z32: 1 | AA32: ）
A33: 3 | B33: 3 | D33: ( | F33: ) | G33: 6 | I33: ( | K33: ) | O33: ( | Q33: ） | W33: 9 | Y33: （ | Z33: 0 | AA33: ）
A34: 計 | B34: =SUM(B22:B33) -> 70 | D34: （ | E34: =SUM(E22:E33) -> 19 | F34: ） | G34: =SUM(G22:G33) -> 36 | I34: （ | J34: =SUM(J22:J33) -> 8 | K34: ） | M34: =SUM(M22:M33) -> 3 | O34: （ | Q34: ） | W34: 109 | Y34: （ | Z34: 27 | AA34: ）
A35: 7月死産で1件あり（）は里帰り分で内数

Sheet 出産表（２４年１０月）
A1: １0月 出産表
A2: 日 | B2: 月 | C2: 火 | D2: 水 | E2: 木 | F2: 金 | G2: 土
B3: 1 | C3: 2 | D3: 3 | E3: 4 | F3: 5 | G3: 6
F4: 女（紀北町）１ 兵庫県
A5: 7 | B5: 8 | C5: 9 | D5: 10 | E5: 11 | F5: 12 | G5: 13
E6: 男（尾鷲）１
A7: 14 | B7: 15 | C7: 16 | D7: 17 | E7: 18 | F7: 19 | G7: 20
B8: 男（尾鷲）１ | E8: 男（紀北町）１
A9: 21 | B9: 22 | C9: 23 | D9: 24 | E9: 25 | F9: 26 | G9: 27
C10: 女（尾鷲）１ | E10: 男（尾鷲）１ 男（尾鷲）１ 神奈川県 | G10: 女（紀北町）１
A11: 28 | B11: 29 | C11: 30 | D11: 31
B12: 男（紀北町）１ | C12: 女（尾鷲）１ | D12: 女（尾鷲）１

Sheet 出産表（２４年１１月）
A1: 11月 出産表
A2: 日 | B2: 月 | C2: 火 | D2: 水 | E2: 木 | F2: 金 | G2: 土
E3: 1 | F3: 2 | G3: 3
A5: 4 | B5: 5 | C5: 6 | D5: 7 | E5: 8 | F5: 9 | G5: 10
B6: 女（尾鷲市）１ | E6: 女（紀北町）１ | F6: 男（尾鷲市）１
A7: 11 | B7: 12 | C7: 13 | D7: 14 | E7: 15 | F7: 16 | G7: 17
E8: 女（尾鷲市）2 神奈川 1 | G8: 女（尾鷲市）１
A9: 18 | B9: 19 | C9: 20 | D9: 21 | E9: 22 | F9: 23 | G9: 24
B10: 男（尾鷲市）１ | C10: 女（尾鷲市）１ | D10: 男（尾鷲市）１ | E10: 男（市外）１ | F10: 男（尾鷲市）１ 川越町
A11: 25 | B11: 26 | C11: 27 | D11: 28 | E11: 29 | F11: 30
C12: 女（尾鷲市）１ | E12: 男（紀北町）１

Sheet 出産表（2５年１月）
A1: 1月 出産表
A2: 日 | B2: 月 | C2: 火 | D2: 水 | E2: 木 | F2: 金 | G2: 土
C3: 1 | D3: 2 | E3: 3 | F3: 4 | G3: 5
G4: 男（尾鷲）1
A5: 6 | B5: 7 | C5: 8 | D5: 9 | E5: 10 | F5: 11 | G5: 12
A6: 男（紀北町）１ 愛知県 | B6: 男（尾鷲）１ 四日市 女（紀北町）１ 愛知県 男（紀北町）1 | E6: 男（尾鷲）1 | G6: 女（尾鷲）1 男（尾鷲）1
A7: 13 | B7: 14 | C7: 15 | D7: 16 | E7: 17 | F7: 18 | G7: 19
C8: 男（尾鷲）1 | D8: 男（紀北町）１ | E8: 女（尾鷲）1
A9: 20 | B9: 21 | C9: 22 | D9: 23 | E9: 24 | F9: 25 | G9: 26
B10: 男（尾鷲）2 横浜市（1） | C10: 男（紀北町）１ 南伊勢 | F10: 女（紀北町）１
A11: 27 | B11: 28 | C11: 29 | D11: 30 | E11: 31
A12: 女（尾鷲）1 大阪市 男（熊野市）1 | C12: 男（尾鷲）1

Sheet 出産表(25年２月）
A1: 2月 出産表
A2: 日 | B2: 月 | C2: 火 | D2: 水 | E2: 木 | F2: 金 | G2: 土
F3: 1 | G3: 2
F4: 男（尾鷲市）１
A5: 3 | B5: 4 | C5: 5 | D5: 6 | E5: 7 | F5: 8 | G5: 9
A7: 10 | B7: 11 | C7: 12 | D7: 13 | E7: 14 | F7: 15 | G7: 16
B8: 男（尾鷲市）１ | F8: 男（紀北町）１
A9: 17 | B9: 18 | C9: 19 | D9: 20 | E9: 21 | F9: 22 | G9: 23
A10: 男（尾鷲市）１ 大阪市 | B10: 男（尾鷲市）１ | C10: 女（尾鷲市）１ | D10: 女（紀北町）１ | E10: 女（紀北町）１ | F10: 男（紀北町）１
A11: 24 | B11: 25 | C11: 26 | D11: 26 | E11: 27 | F11: 28

Sheet 出産表 (２５年３月)
A1: ３月 出産表
A2: 日 | B2: 月 | C2: 火 | D2: 水 | E2: 木 | F2: 金 | G2: 土
F3: 1 | G3: 2
A5: 3 | B5: 4 | C5: 5 | D5: 6 | E5: 7 | F5: 8 | G5: 9
A6: 男（尾鷲市）２ | B6: 男（紀北町）１
A7: 10 | B7: 11 | C7: 12 | D7: 13 | E7: 14 | F7: 15 | G7: 16
C8: 女（紀北町）１ | E8: 男（紀北町）１
A9: 17 | B9: 18 | C9: 19 | D9: 20 | E9: 21 | F9: 22 | G9: 23
A10: 女（尾鷲市）１ 女（紀北町）１
A11: 24 | B11: 25 | C11: 26 | D11: 27 | E11: 28 | F11: 29 | G11: 30
E12: 女（尾鷲市）１ | G12: 女（紀北町）１
A13: 31

Sheet Sheet6

Sheet Sheet7
